fUSD/lending_fUSD_20250225
["ID","MTS","AMOUNT","RATE_DAILY","PERIOD"]
[354446123,1740502240888,-13655.4725741,0.0004398,4]
[354446124,1740502240897,-4551.82419137,0.00043989,4]
[354446125,1740502240906,-24414.40620241,0.0004399,4]
[354446126,1740502240927,-162210.38564359,0.0004399,4]
[354446127,1740502240937,-221109.796304,0.0004399,4]
[354446129,1740502240946,-500.0,0.00043999,120]
[354446131,1740502240955,-205.58256147,0.00043999,120]
[354446133,1740502240965,-500.0,0.00043999,120]
[354446134,1740502240974,-500.0,0.00043999,120]
[354446136,1740502240983,-500.0,0.00043999,120]
[354446138,1740502240992,-500.0,0.00043999,120]
[354446140,1740502241001,-500.0,0.00043999,120]
[354446142,1740502241010,-205.58256147,0.00043999,120]
[354446144,1740502241019,-500.0,0.00043999,120]
[354446146,1740502241028,-1974.33,0.00044,120]
[354446148,1740502241037,-987.7,0.00044,120]
[354446150,1740502241046,-987.7,0.00044,120]
[354446152,1740502241056,-1981.78,0.00044,120]
[354446154,1740502241065,-987.7,0.00044,120]
[354446156,1740502241075,-987.7,0.00044,120]
[354446158,1740502241084,-987.7,0.00044,120]
[354446160,1740502241093,-987.7,0.00044,120]
[354446162,1740502241102,-586.11,0.00044,120]
[354446164,1740502241112,-987.7,0.00044,120]
[354446166,1740502241121,-987.7,0.00044,120]
[354446167,1740502241130,-987.7,0.00044,120]
[354446168,1740502241139,-987.7,0.00044,120]
[354446169,1740502241148,-987.7,0.00044,120]
[354446170,1740502241157,-987.7,0.00044,120]
[354446171,1740502241167,-987.7,0.00044,120]
[354446172,1740502241177,-987.7,0.00044,120]
[354446173,1740502241186,-987.7,0.00044,120]
[354446174,1740502241206,-987.7,0.00044,120]
[354446175,1740502241216,-987.7,0.00044,120]
[354446176,1740502241226,-987.7,0.00044,120]
[354446177,1740502241235,-987.7,0.00044,120]
[354446178,1740502241245,-987.7,0.00044,120]
[354446179,1740502241255,-987.7,0.00044,120]
[354446180,1740502241265,-987.7,0.00044,120]
[354446181,1740502241275,-852.37,0.00044,120]
[354446182,1740502241284,-987.7,0.00044,120]
[354446183,1740502241296,-171.0,0.00044,30]
[354446184,1740502241305,-131759.71531525,0.00044,120]
[354446185,1740502241318,-579.47036809,0.00044,120]
[354446186,1740502241347,-1742.3,0.00044,120]
[354446187,1740502241360,-483.29665434,0.00044,120]
[354446188,1740502241371,-1407.49852703,0.00044,120]
[354446189,1740502241429,-1643.8794372,0.00044,120]
[354446190,1740502241441,-1490.48160631,0.00044,120]
[354446191,1740502241466,-2822.57999651,0.00044,120]
[354446192,1740502241478,-1003.70234189,0.00044,120]
[354446193,1740502241489,-4354.19767354,0.00044,120]
[354446194,1740502241501,-486.3933518,0.00044,120]
[354446271,1740502244149,-2254.45,0.00034,120]
[354446274,1740502244159,-8565.55,0.00037729,2]
[354446277,1740502244170,-392.29490377,0.00037729,2]
[354446281,1740502244183,-293.2210186,0.00037729,2]
[354446322,1740502244503,-390.3345,0.00037729,2]
[354446328,1740502244554,-14820.35896906,0.00037729,2]
[354446330,1740502244564,-150.0,0.00041369,14]
[354446332,1740502244573,-10411.29826016,0.00044,120]
[354446334,1740502244584,-5562.72028883,0.00044,120]
[354446348,1740502244708,-6569.64,0.00044,120]
[354446473,1740502246513,-719.23999998,0.00044,120]
[354446474,1740502246524,-676.49021,0.00044,120]
[354446475,1740502246535,-1822.78396786,0.00044,120]
[354446476,1740502246547,-389.63124367,0.00044,120]
[354446477,1740502246567,-150.0,0.000438,15]
[354446478,1740502246576,-10879.42440065,0.00044,120]
[354446479,1740502246588,-1849.4087548,0.00044,120]
[354446480,1740502246604,-300.0,0.00044,120]
[354446481,1740502246622,-10019.93032725,0.00044,120]
[354446482,1740502246633,-480.85021655,0.00044,120]
[354446483,1740502246644,-258.11508469,0.00044,120]
[354446484,1740502246655,-491.27519962,0.00044,120]
[354446485,1740502246666,-3547.60571757,0.00044,120]
[354446486,1740502246678,-2570.41893268,0.00044,120]
[354446487,1740502246695,-402.20549936,0.00044,120]
[354446488,1740502246707,-329.3384,0.00044,120]
[354446494,1740502327477,220.0,0.00023,30]
[354446495,1740502671999,-200.0,0.00032,30]
[354446496,1740502672027,-200.0,0.00032799,30]
[354446497,1740502672055,-7488.31069263,0.000329,120]
[354446498,1740502672084,-158.73,0.000335,31]
[354446499,1740502672111,-158.73,0.000335,31]
[354446500,1740502672136,-280.0,0.00036079,30]
[354446501,1740502672170,-158.73,0.000373,31]
[354446502,1740502672222,-158.73,0.000373,31]
[354446503,1740502672270,-158.73,0.000373,31]
[354446504,1740502672324,-158.73,0.000373,31]
[354446505,1740502672372,-150.0,0.00039,37]
[354446506,1740502672419,-288.0,0.00039687,60]
[354446507,1740502672458,-500.0,0.0004105,120]
[354446508,1740502672506,-158.73,0.000411,31]
[354446509,1740502672549,-158.73,0.000411,31]
[354446510,1740502672594,-158.73,0.000411,31]
[354446511,1740502672639,-158.73,0.000411,31]
[354446512,1740502672681,-380.32,0.0004236,120]
[354446513,1740502672721,-500.0,0.0004315,120]
[354446514,1740502672760,-500.0,0.0004365,120]
[354446515,1740502672799,-509.03294,0.00043899,49]
[354446516,1740502672840,-186.37586934,0.00043999,120]
[354446517,1740502672881,-500.0,0.00043999,120]
[354446518,1740502672922,-500.0,0.00043999,120]
[354446519,1740502672963,-500.0,0.00043999,120]
[354446520,1740502673006,-500.0,0.00043999,120]
[354446521,1740502673050,-532.23302458,0.00043999,120]
[354446522,1740502673091,-500.0,0.00043999,120]
[354446523,1740502673131,-794946.10822437,0.00044,120]
[354446524,1740502673171,-515.526369,0.00044,57]
[354446525,1740502673216,-561.14912903,0.000444,120]
[354446526,1740502673256,-303.25873878,0.00044499,30]
[354446527,1740502673297,-1000000.0,0.000445,120]
[354446528,1740502673339,-156.21455419,0.00044658,30]
[354446529,1740502673386,-158.73,0.000449,39]
[354446530,1740502673432,-158.73,0.000449,39]
[354446531,1740502673478,-158.73,0.000449,39]
[354446532,1740502673735,-158.73,0.000449,39]
[354446533,1740502673760,-1000000.0,0.00045,120]
[354446534,1740502673785,-500.0,0.0004525,120]
[354446535,1740502673810,-2000.0,0.0004525,120]
[354446536,1740502673834,-500.0,0.0004525,120]
[354446537,1740502673873,-500.0,0.0004525,120]
[354446538,1740502673901,-200.0,0.0004525,120]
[354446539,1740502673926,-156.21455419,0.0004526,30]
[354446540,1740502673956,-468.0,0.00045319,120]
[354446541,1740502673983,-1000000.0,0.000455,120]
[354446542,1740502674010,-1902.068,0.00045777,75]
[354446543,1740502674036,-1000.0,0.00045888,120]
[354446544,1740502674064,-1000000.0,0.00046,120]
[354446545,1740502674089,-531000.0,0.000465,120]
[354446546,1740502674115,-150.0,0.00046999,30]
[354446547,1740502674140,-648704.96790389,0.00047,120]
[354446548,1740502678480,-351295.03209611,0.00047,120]
[354446549,1740502678506,-150.0,0.00047136,30]
[354446550,1740502678531,-150.0,0.00047273,30]
[354446551,1740502678558,-4813.6,0.00047281,117]
[354446552,1740502678583,-150.0,0.0004741,30]
[354446553,1740502678610,-1000000.0,0.000475,120]
[354446554,1740502678637,-1000000.0,0.000475,120]
[354446555,1740502678664,-150.0,0.00047547,30]
[354446556,1740502678690,-500.0,0.00047597,120]
[354446557,1740502678717,-380.32,0.00047655,120]
[354446558,1740502678743,-150.0,0.00047684,30]
[354446559,1740502678768,-150.0,0.00047821,30]
[354446560,1740502678794,-150.0,0.00047958,30]
[354446561,1740502678819,-423.67514805,0.00047986,120]
[354446562,1740502678844,-608.61046965,0.00048,120]
[354446563,1740502678870,-1000000.0,0.00048,120]
[354446564,1740502678894,-300.0,0.00048,90]
[354446565,1740502678918,-152.0,0.00048,90]
[354446566,1740502678942,-150.0,0.00048095,30]
[354446567,1740502678966,-17159.1,0.000482,36]
[354446568,1740502678990,-174.1746699,0.00048232,30]
[354446569,1740502679015,-3015.77248554,0.000483,120]
[354446570,1740502679041,-300.0,0.00048356,90]
[354446571,1740502679067,-1000.0,0.00048369,120]
[354446572,1740502679094,-1000000.0,0.000485,120]
[354446573,1740502679119,-194.95672089,0.00048566,32]
[354446574,1740502679149,-158.73,0.000488,45]
[354446575,1740502679177,-158.73,0.000488,45]
[354446576,1740502679205,-158.73,0.000488,45]
[354446577,1740502679233,-158.73,0.000488,45]
[354446578,1740502679262,-158.73,0.000488,45]
[354446579,1740502679291,-158.73,0.000488,45]
[354446580,1740502679316,-509.03295,0.00048899,49]
[354446581,1740502679351,-1617021.34545986,0.00049,120]
[354446582,1740502683936,-150.0,0.00045888,120]
[354446583,1740502683971,-382978.65454014,0.00049,120]
[354446584,1740502683994,-500.0,0.00049,30]
[354446585,1740502684022,-500.0,0.00049,30]
[354446586,1740502684046,-500.0,0.00049,30]
[354446587,1740502684073,-500.0,0.00049,30]
[354446588,1740502684098,-500.0,0.00049,30]
[354446589,1740502684123,-618.45613313,0.00049,30]
[354446590,1740502684150,-500.0,0.00049287,120]
[354446591,1740502684175,-500.0,0.00049287,120]
[354446592,1740502684199,-579.49831212,0.00049287,120]
[354446593,1740502684225,-500.0,0.00049315,120]
[354446594,1740502684250,-16144.04,0.00049315,120]
[354446595,1740502684277,-1500.0,0.00049315,120]
[354446596,1740502684302,-194.95672089,0.000494,36]
[354446597,1740502684330,-6045.54,0.000494,120]
[354446598,1740502684355,-350.0,0.000494,120]
[354446599,1740502684381,-375.0,0.000494,120]
[354446600,1740502684406,-385.40570462,0.0004945,120]
[354446601,1740502684436,-500.0,0.00049452,120]
[354446602,1740502684461,-379.53377024,0.000495,120]
[354446603,1740502684485,-1500.0,0.00049526,120]
[354446604,1740502684510,-500.0,0.00049589,120]
[354446605,1740502684536,-16144.04,0.00049671,120]
[354446606,1740502684563,-17159.07,0.000497,40]
[354446607,1740502684590,-500.0,0.00049726,120]
[354446608,1740502684615,-1500.0,0.00049737,120]
[354446609,1740502684641,-1000.0,0.00049789,120]
[354446610,1740502684667,-5000.0,0.0004985,30]
[354446611,1740502684692,-5000.0,0.0004986,30]
[354446612,1740502684718,-500.0,0.00049863,120]
[354446613,1740502684741,-150.85,0.00049863,30]
[354446614,1740502684765,-677.9871,0.000499,30]
[354446615,1740502684939,-2000.0,0.000499,30]
[354446616,1740502684964,-2000.0,0.000499,30]
[354446617,1740502684989,-2000.0,0.000499,30]
[354446618,1740502685013,-1500.0,0.00049947,120]
[354446619,1740502685038,-50000.0,0.0005,50]
[354446620,1740502685063,-300.0,0.0005,120]
[354446621,1740502685087,-422.0,0.0005,120]
[354446622,1740502685111,-5000.0,0.0005,30]
[354446623,1740502685135,-20519.0989663,0.0005,120]
[354446624,1740502685161,-2000000.0,0.0005,120]
[354446625,1740502685185,-2000000.0,0.0005,120]
[354446626,1740502685209,-500.0,0.0005,120]
[354446627,1740502685233,-16144.04,0.00050027,120]
[354446628,1740502685258,-500.0,0.00050136,120]
[354446629,1740502685285,-1500.0,0.00050158,120]
[354446630,1740502685312,-194.95672089,0.00050233,39]
[354446631,1740502685337,-500.0,0.00050273,120]
[354446632,1740502685361,-97275.37461831,0.000503,120]
[354446633,1740502685385,-1500.0,0.00050369,120]
[354446634,1740502685413,-16144.04,0.00050383,120]
[354446635,1740502685443,-500.0,0.0005041,120]
[354446636,1740502685470,-300.0,0.00050486,120]
[354446637,1740502685495,-152.0,0.00050486,120]
[354446638,1740502685522,-1317215.45741336,0.000505,120]
[354446639,1740502768680,-1141.24,0.00042455,64]
[354446640,1740502768713,-500.0,0.00044499,120]
[354446641,1740502768738,-500.0,0.00044499,120]
[354446642,1740502768764,-500.0,0.00044499,120]
[354446643,1740502768790,-622.56311721,0.00044499,120]
[354446644,1740502768821,-13453.37,0.00049315,120]
[354446645,1740502768846,-13453.37,0.00049671,120]
[354446646,1740502768871,-151.9,0.0005,120]
[354446647,1740502768898,-13453.37,0.00050027,120]
[354446648,1740502768923,-13453.37,0.00050383,120]
[354446649,1740502768947,-2000000.0,0.000505,120]
[354446650,1740502768971,-150.0,0.000505,120]
[354446651,1740502768995,-500.0,0.00050547,120]
[354446652,1740502769019,-1500.0,0.0005058,120]
[354446653,1740502769044,-271.36210988,0.00050622,35]
[354446654,1740502769068,-500.0,0.00050684,120]
[354446655,1740502769093,-17159.07,0.000507,42]
[354446656,1740502769117,-13453.37,0.00050739,120]
[354446657,1740502769142,-1500.0,0.0005079,120]
[354446658,1740502769166,-500.0,0.00050821,120]
[354446659,1740502769190,-500.0,0.00050958,120]
[354446660,1740502769215,-100000.0,0.00051,50]
[354446661,1740502769239,-2000000.0,0.00051,120]
[354446662,1740502769262,-151.0,0.00051,120]
[354446663,1740502769285,-151.0,0.00051,120]
[354446664,1740502769309,-151.0,0.00051,120]
[354446665,1740502769333,-234.171575,0.00051,120]
[354446666,1740502769357,-234.171575,0.00051,120]
[354446667,1740502769381,-151.0,0.00051,120]
[354446668,1740502769408,-151.0,0.00051,120]
[354446669,1740502769432,-1500.0,0.00051001,120]
[354446670,1740502769459,-194.95672089,0.00051067,42]
[354446671,1740502769485,-621.76760834,0.00051095,120]
[354446672,1740502769511,-13453.37,0.00051095,120]
[354446673,1740502769536,-151.465907,0.00051149,30]
[354446674,1740502769560,-1500.0,0.00051212,120]
[354446675,1740502769584,-21952.60497515,0.0005123,120]
[354446676,1740502769609,-1500.0,0.00051423,120]
[354446677,1740502769632,-13453.37,0.00051452,120]
[354446678,1740502769659,-1751186.13641153,0.000515,120]
[354446679,1740502780423,-490.003279,0.000504,30]
[354446680,1740502780449,-522.51658478,0.000504,120]
[354446681,1740502780479,-150.0,0.00051149,30]
[354446682,1740502780504,-248813.86358847,0.000515,120]
[354446683,1740502780529,-151.0,0.000515,120]
[354446684,1740502780557,-247.691326,0.000515,120]
[354446685,1740502780582,-449.66,0.00051507,30]
[354446686,1740502780608,-489.81566801,0.00051594,35]
[354446687,1740502780633,-1500.0,0.00051633,120]
[354446688,1740502780661,-581.02198467,0.00051696,36]
[354446689,1740502780830,-13453.37,0.00051808,120]
[354446690,1740502780854,-1500.0,0.00051844,120]
[354446691,1740502780878,-194.95672089,0.000519,46]
[354446692,1740502780906,-100000.0,0.00052,52]
[354446693,1740502780930,-304.30523483,0.00052,120]
[354446694,1740502780954,-2000000.0,0.00052,120]
[354446695,1740502780978,-151.0,0.00052,120]
[354446696,1740502781001,-151.0,0.00052,120]
[354446697,1740502781024,-151.0,0.00052,120]
[354446698,1740502781047,-151.0,0.00052,120]
[354446699,1740502781070,-151.0,0.00052,120]
[354446700,1740502781093,-151.0,0.00052,120]
[354446701,1740502781118,-191.923493,0.00052,120]
[354446702,1740502781142,-191.923493,0.00052,120]
[354446703,1740502781165,-151.0,0.00052,120]
[354446704,1740502781189,-1500.0,0.00052055,120]
[354446705,1740502781213,-13453.37,0.00052164,120]
[354446706,1740502781237,-1500.0,0.00052266,120]
[354446707,1740502781261,-5000.0,0.0005241,30]
[354446708,1740502781285,-1500.0,0.00052476,120]
[354446709,1740502781308,-2110.0,0.000525,30]
[354446710,1740502781333,-13453.37,0.0005252,120]
[354446711,1740502781357,-490.00327899,0.0005265,30]
[354446712,1740502781382,-522.51658476,0.0005265,120]
[354446713,1740502781407,-1500.0,0.00052687,120]
[354446714,1740502781432,-5000.0,0.0005286,30]
[354446715,1740502781460,-13453.37,0.00052876,120]
[354446716,1740502781484,-1500.0,0.00052898,120]
[354446717,1740502781510,-380.32,0.0005295,120]
[354446718,1740502781548,-100000.0,0.00053,63]
[354446719,1740502781602,-2000000.0,0.00053,120]
[354446720,1740502781650,-151.0,0.00053,120]
[354446721,1740502781701,-151.0,0.00053,120]
[354446722,1740502781752,-151.0,0.00053,120]
[354446723,1740502781794,-234.171575,0.00053,120]
[354446724,1740502781837,-234.171575,0.00053,120]
[354446725,1740502781877,-301.0,0.00053011,120]
[354446726,1740502781918,-1500.0,0.00053109,120]
[354446727,1740502781959,-150.0,0.00053151,30]
[354446728,1740502782000,-439.38,0.00053151,30]
[354446729,1740502782040,-300.0,0.00053151,30]
[354446730,1740502782080,-13453.37,0.00053232,120]
[354446731,1740502782119,-1500.0,0.00053319,120]
[354446732,1740502782159,-10000.0,0.0005344,30]
[354446733,1740502782200,-1500.0,0.0005353,120]
[354446734,1740502782241,-5000.0,0.0005357,30]
[354446735,1740502782281,-13453.37,0.00053589,120]
[354446736,1740502782319,-1500.0,0.00053741,120]
[354446737,1740502782360,-509.03295,0.00053899,49]
[354446738,1740502782401,-13453.37,0.00053945,120]
[354446739,1740502782443,-1500.0,0.00053952,120]
[354446740,1740502782486,-100000.0,0.00054,54]
[354446741,1740502782531,-1302867.1326636,0.00054,120]
[354446742,1740502801653,-697132.8673364,0.00054,120]
[354446743,1740502801686,-151.0,0.00054,120]
[354446744,1740502801713,-683606.0,0.00054,120]
[354446745,1740502801738,-150.0,0.00054,120]
[354446746,1740502801762,-1500.0,0.00054162,120]
[354446747,1740502801789,-13453.37,0.00054301,120]
[354446748,1740502801815,-1500.0,0.00054373,120]
[354446749,1740502801844,-161.45,0.00054384,120]
[354446750,1740502801873,-171.2,0.00054384,120]
[354446751,1740502801901,-1500.0,0.00054584,120]
[354446752,1740502801929,-13453.37,0.00054657,120]
[354446753,1740502801954,-1283.85925758,0.0005479,120]
[354446754,1740502801982,-1283.85925758,0.0005479,120]
[354446755,1740502802010,-1283.85925758,0.0005479,120]
[354446756,1740502802038,-1283.85925758,0.0005479,120]
[354446757,1740502802066,-1283.85925758,0.0005479,120]
[354446758,1740502802264,-1283.85925758,0.0005479,120]
[354446759,1740502802289,-1283.85925758,0.0005479,120]
[354446760,1740502802313,-1283.85925758,0.0005479,120]
[354446761,1740502802337,-1283.85925758,0.0005479,120]
[354446762,1740502802362,-1283.85925758,0.0005479,120]
[354446763,1740502802390,-1283.85925758,0.0005479,120]
[354446764,1740502802421,-1283.85925758,0.0005479,120]
[354446765,1740502802449,-1283.85925758,0.0005479,120]
[354446766,1740502802489,-1283.85925758,0.0005479,120]
[354446767,1740502802513,-1283.85925758,0.0005479,120]
[354446768,1740502802537,-1283.85925758,0.0005479,120]
[354446769,1740502802565,-1283.85925758,0.0005479,120]
[354446770,1740502802590,-1283.85925758,0.0005479,120]
[354446771,1740502802616,-1283.85925758,0.0005479,120]
[354446772,1740502802642,-1283.85,0.0005479,120]
[354446773,1740502802669,-2995.67160102,0.0005479,120]
[354446774,1740502802693,-2995.67160102,0.0005479,120]
[354446775,1740502802717,-2995.67160102,0.0005479,120]
[354446776,1740502802741,-2995.67160102,0.0005479,120]
[354446777,1740502802766,-2995.67160102,0.0005479,120]
[354446778,1740502802790,-2995.67160102,0.0005479,120]
[354446779,1740502802816,-2995.67160102,0.0005479,120]
[354446780,1740502802840,-2995.67160102,0.0005479,120]
[354446781,1740502802865,-2995.67160102,0.0005479,120]
[354446782,1740502802890,-2995.67160102,0.0005479,120]
[354446783,1740502802916,-2995.67160102,0.0005479,120]
[354446784,1740502802940,-2995.67160102,0.0005479,120]
[354446785,1740502802966,-2995.67160102,0.0005479,120]
[354446786,1740502803012,-2995.67160102,0.0005479,120]
[354446787,1740502803043,-2995.67160102,0.0005479,120]
[354446788,1740502803070,-2995.67160102,0.0005479,120]
[354446789,1740502803096,-2995.67160102,0.0005479,120]
[354446790,1740502803121,-2995.67160102,0.0005479,120]
[354446791,1740502803160,-2995.67160102,0.0005479,120]
[354446792,1740502803193,-1627.37207904,0.0005479,120]
[354446793,1740502803222,-1627.37207904,0.0005479,120]
[354446794,1740502803250,-1627.37207904,0.0005479,120]
[354446795,1740502803276,-1627.37207904,0.0005479,120]
[354446796,1740502803305,-1627.37207904,0.0005479,120]
[354446797,1740502803334,-1627.37207904,0.0005479,120]
[354446798,1740502803361,-1627.37207904,0.0005479,120]
[354446799,1740502803389,-1627.37207904,0.0005479,120]
[354446800,1740502803422,-1627.37207904,0.0005479,120]
[354446801,1740502803451,-1627.37207904,0.0005479,120]
[354446802,1740502803484,-1627.37207904,0.0005479,120]
[354446803,1740502803513,-1627.37207904,0.0005479,120]
[354446804,1740502803542,-1627.37207904,0.0005479,120]
[354446805,1740502803571,-1627.37207904,0.0005479,120]
[354446806,1740502803604,-1627.37207904,0.0005479,120]
[354446807,1740502803633,-1627.37207904,0.0005479,120]
[354446808,1740502803660,-1627.37207904,0.0005479,120]
[354446809,1740502803689,-1627.37207904,0.0005479,120]
[354446810,1740502803717,-1627.37207904,0.0005479,120]
[354446811,1740502803751,-1627.37,0.0005479,120]
[354446812,1740502803782,-3797.20151776,0.0005479,120]
[354446813,1740502803810,-3797.20151776,0.0005479,120]
[354446814,1740502803839,-3797.20151776,0.0005479,120]
[354446815,1740502803869,-3797.20151776,0.0005479,120]
[354446816,1740502803899,-3797.20151776,0.0005479,120]
[354446817,1740502803933,-3797.20151776,0.0005479,120]
[354446818,1740502803963,-3797.20151776,0.0005479,120]
[354446819,1740502803996,-3797.20151776,0.0005479,120]
[354446820,1740502804029,-3797.20151776,0.0005479,120]
[354446821,1740502804062,-3797.20151776,0.0005479,120]
[354446822,1740502804091,-3797.20151776,0.0005479,120]
[354446823,1740502804119,-3797.20151776,0.0005479,120]
[354446824,1740502804148,-3797.20151776,0.0005479,120]
[354446825,1740502804182,-3797.20151776,0.0005479,120]
[354446826,1740502804214,-3797.20151776,0.0005479,120]
[354446827,1740502804243,-3797.20151776,0.0005479,120]
[354446828,1740502804272,-3797.20151776,0.0005479,120]
[354446829,1740502804303,-3797.20151776,0.0005479,120]
[354446830,1740502804340,-3797.20151776,0.0005479,120]
[354446831,1740502804371,-500.0,0.00054794,120]
[354446832,1740502804402,-157.345278,0.00054794,120]
[354446833,1740502804436,-162.87592,0.00054794,120]
[354446834,1740502804471,-159.252286,0.00054794,120]
[354446835,1740502804506,-159.271362,0.00054794,120]
[354446836,1740502804536,-166.734294,0.00054794,120]
[354446837,1740502804774,-158.663894,0.00054794,120]
[354446838,1740502804803,-166.734294,0.00054794,120]
[354446839,1740502804834,-160.399577,0.00054794,120]
[354446840,1740502804861,-166.734294,0.00054794,120]
[354446841,1740502804888,-160.399577,0.00054794,120]
[354446842,1740502804918,-166.734294,0.00054794,120]
[354446843,1740502804943,-156.727434,0.00054794,120]
[354446844,1740502804970,-162.470746,0.00054794,120]
[354446845,1740502804997,-161.466652,0.00054794,120]
[354446846,1740502805023,-158.143148,0.00054794,120]
[354446847,1740502805049,-158.663893,0.00054794,120]
[354446848,1740502805076,-500.0,0.00054794,120]
[354446849,1740502805102,-500.0,0.00054794,120]
[354446850,1740502805128,-500.0,0.00054794,120]
[354446851,1740502805154,-500.0,0.00054794,120]
[354446852,1740502805182,-502.90185902,0.00054794,120]
[354446853,1740502805225,-500.0,0.00054794,120]
[354446854,1740502805253,-500.0,0.00054794,120]
[354446855,1740502805280,-500.0,0.00054794,120]
[354446856,1740502805306,-500.0,0.00054794,120]
[354446857,1740502805333,-500.86220362,0.00054794,120]
[354446858,1740502805360,-500.0,0.00054794,120]
[354446859,1740502805386,-502.7843854,0.00054794,120]
[354446860,1740502805412,-500.0,0.00054794,120]
[354446861,1740502805443,-502.49379136,0.00054794,120]
[354446862,1740502805479,-500.0,0.00054794,120]
[354446863,1740502805528,-564.43690712,0.00054794,120]
[354446864,1740502805569,-500.0,0.00054794,120]
[354446865,1740502805599,-500.0,0.00054794,120]
[354446866,1740502805628,-500.0,0.00054794,120]
[354446867,1740502805655,-500.68593433,0.00054794,120]
[354446868,1740502805692,-500.0,0.00054794,120]
[354446869,1740502805724,-500.0,0.00054794,120]
[354446870,1740502805755,-500.0,0.00054794,120]
[354446871,1740502805784,-500.0,0.00054794,120]
[354446872,1740502805813,-500.0,0.00054794,120]
[354446873,1740502805839,-500.0,0.00054794,120]
[354446874,1740502805867,-500.0,0.00054794,120]
[354446875,1740502805897,-500.0,0.00054794,120]
[354446876,1740502805928,-500.0,0.00054794,120]
[354446877,1740502805956,-771.15,0.00054794,120]
[354446878,1740502805984,-500.0,0.00054794,120]
[354446879,1740502806010,-500.0,0.00054794,120]
[354446880,1740502806037,-500.0,0.00054794,120]
[354446881,1740502806065,-500.0,0.00054794,120]
[354446882,1740502806091,-500.0,0.00054794,120]
[354446883,1740502806118,-3932.68,0.00054794,120]
[354446884,1740502806145,-500.0,0.00054794,120]
[354446885,1740502806178,-500.0,0.00054794,120]
[354446886,1740502806206,-500.0,0.00054794,120]
[354446887,1740502806233,-502.17175765,0.00054794,120]
[354446888,1740502806264,-500.0,0.00054794,120]
[354446889,1740502806300,-500.0,0.00054794,120]
[354446890,1740502806330,-500.0,0.00054794,120]
[354446891,1740502806360,-500.0,0.00054794,120]
[354446892,1740502806389,-500.0,0.00054794,120]
[354446893,1740502806420,-500.0,0.00054794,120]
[354446894,1740502806447,-482.49560516,0.00054794,120]
[354446895,1740502806480,-500.0,0.00054794,120]
[354446896,1740502806507,-574.64,0.00054794,120]
[354446897,1740502806536,-500.0,0.00054794,120]
[354446898,1740502806566,-500.0,0.00054794,120]
[354446899,1740502806592,-500.0,0.00054794,120]
[354446900,1740502806620,-500.0,0.00054794,120]
[354446901,1740502806647,-500.0,0.00054794,120]
[354446902,1740502806677,-500.0,0.00054794,120]
[354446903,1740502806703,-509.1372711,0.00054794,120]
[354446904,1740502806729,-500.0,0.00054794,120]
[354446905,1740502806755,-500.0,0.00054794,120]
[354446906,1740502806782,-583.40278354,0.00054794,120]
[354446907,1740502806810,-500.0,0.00054794,120]
[354446908,1740502806836,-500.0,0.00054794,120]
[354446909,1740502806866,-500.0,0.00054794,120]
[354446910,1740502806893,-500.0,0.00054794,120]
[354446911,1740502806921,-1019.18,0.00054794,120]
[354446912,1740502806948,-500.0,0.00054794,120]
[354446913,1740502807164,-500.0,0.00054794,120]
[354446914,1740502807203,-500.0,0.00054794,120]